fUST/lending_fUST_20251125
["ID","MTS","AMOUNT","RATE_DAILY","PERIOD"]
[394866949,1764034162270,-500.0,8.421e-05,2]
[394866950,1764034162297,-500.0,8.421e-05,2]
[394866951,1764034162333,-500.0,8.421e-05,2]
[394866952,1764034162366,-500.0,8.421e-05,2]
[394866953,1764034162396,-1887.97025621,8.422e-05,2]
[394866971,1764034232078,-189.75410333,8.254e-05,2]
[394866973,1764034232089,-271.0,8.337e-05,2]
[394866975,1764034232099,-300.0,8.337e-05,2]
[394866976,1764034232108,-230.08289436,8.337e-05,2]
[394866977,1764034232119,-356.90616913,8.337e-05,2]
[394866978,1764034232131,-525.06757274,8.337e-05,2]
[394866979,1764034232142,-87.94336377,8.337e-05,2]
[394866980,1764034232152,-200.0,8.337e-05,2]
[394866981,1764034232161,-227.09775677,8.338e-05,2]
[394866982,1764034232175,-16526.86647252,8.338e-05,2]
[394866983,1764034232184,-687.62796999,8.422e-05,2]
[394866984,1764034232196,-603.67150937,8.422e-05,2]
[394866993,1764034235295,589.3,0.0002,30]
[394867017,1764034238325,-1176.01083304,8.422e-05,2]
[394867018,1764034238338,-677.42648617,8.422e-05,2]
[394867027,1764034240964,-35899.20505693,8.422e-05,2]
[394867032,1764034245322,-345.00894904,8.422e-05,2]
[394867035,1764034256059,150.0,0.00011,30]
[394867036,1764034310501,1087.57129411,0.0002,30]
[394867037,1764034318876,8004.7635605,7.429e-05,2]
[394867038,1764034337908,158.2333416,0.00021,120]
[394867039,1764034353292,164.851363,0.00014,10]
[394867040,1764034397084,1116.708566,0.0002,30]
[394867058,1764034610129,169.725959,3.714e-05,2]
[394867059,1764034610333,169.725959,7.427e-05,2]
[394867079,1764034638666,162.651,8.109e-05,2]
[394867080,1764034854684,182.64384308,8.069e-05,2]
[394867082,1764034959074,164.851363,0.00014,10]
[394867084,1764035055237,182.64384308,8.069e-05,2]
[394867085,1764035058036,1253.4481588,7.371e-05,2]
[394867086,1764035070920,182.64384308,8.069e-05,2]
[394867087,1764035079126,162.651,8.094e-05,2]
[394867088,1764035094717,162.651,8.094e-05,2]
[394867089,1764035102620,162.651,8.094e-05,2]
[394867090,1764035117805,162.651,8.094e-05,2]
[394867091,1764035125565,162.651,8.094e-05,2]
[394867092,1764035141377,162.651,8.094e-05,2]
[394867093,1764035149289,162.651,8.094e-05,2]
[394867094,1764035164487,162.651,8.094e-05,2]
[394867095,1764035172284,162.651,8.094e-05,2]
[394867096,1764035188044,162.651,8.094e-05,2]
[394867097,1764035196442,162.651,8.094e-05,2]
[394867098,1764035212624,162.651,8.094e-05,2]
[394867100,1764035221018,162.651,8.094e-05,2]
[394867101,1764035236318,162.651,8.094e-05,2]
[394867102,1764035244325,162.651,8.094e-05,2]
[394867103,1764035259487,162.651,8.094e-05,2]
[394867104,1764035267045,162.651,8.094e-05,2]
[394867105,1764035282183,162.651,8.094e-05,2]
[394867106,1764035289951,162.651,8.094e-05,2]
[394867107,1764035305348,162.651,8.094e-05,2]
[394867108,1764035312887,162.651,8.094e-05,2]
[394867109,1764035328089,162.651,8.094e-05,2]
[394867110,1764035335924,162.651,8.094e-05,2]
[394867111,1764035351838,162.651,8.094e-05,2]
[394867112,1764035360227,162.651,8.094e-05,2]
[394867113,1764035375411,162.651,8.094e-05,2]
[394867114,1764035383181,162.651,8.094e-05,2]
[394867115,1764035398335,162.651,8.094e-05,2]
[394867116,1764035406122,162.651,8.094e-05,2]
[394867117,1764035421248,162.651,8.094e-05,2]
[394867118,1764035429061,162.651,8.094e-05,2]
[394867145,1764035432293,-162.651,8.176e-05,2]
[394867147,1764035432306,-182.64384308,8.184e-05,2]
[394867148,1764035432315,-577.2357659,8.321e-05,2]
[394867151,1764035432327,-622.7642341,8.321e-05,2]
[394867152,1764035432336,-300.0,8.321e-05,2]
[394867154,1764035432345,-300.0,8.321e-05,2]
[394867156,1764035432354,-1200.0,8.321e-05,2]
[394867158,1764035432364,-6860.6447544,8.322e-05,2]
[394867160,1764035432374,-500.0,8.323e-05,2]
[394867162,1764035432383,-500.0,8.323e-05,2]
[394867164,1764035432392,-500.0,8.323e-05,2]
[394867165,1764035432402,-500.0,8.323e-05,2]
[394867167,1764035432411,-157.83218494,8.323e-05,2]
[394867169,1764035432420,-500.0,8.323e-05,2]
[394867171,1764035432430,-500.86930458,8.323e-05,2]
[394867173,1764035432439,-395.45172987,8.323e-05,2]
[394867175,1764035432448,-500.0,8.323e-05,2]
[394867176,1764035432458,-500.0,8.323e-05,2]
[394867177,1764035432467,-500.0,8.323e-05,2]
[394867178,1764035432475,-500.0,8.323e-05,2]
[394867179,1764035432485,-500.0,8.341e-05,2]
[394867180,1764035432494,-500.0,8.341e-05,2]
[394867181,1764035432503,-500.0,8.341e-05,2]
[394867182,1764035432512,-500.0,8.341e-05,2]
[394867183,1764035432521,-500.0,8.341e-05,2]
[394867184,1764035432530,-493.19205253,8.341e-05,2]
[394867185,1764035432539,-500.0,8.341e-05,2]
[394867186,1764035432548,-500.0,8.341e-05,2]
[394867187,1764035432558,-75.28428986,8.341e-05,2]
[394867188,1764035432569,-424.71571014,8.341e-05,2]
[394867189,1764035432578,-105.82925257,8.341e-05,2]
[394867190,1764035432589,-394.17074743,8.341e-05,2]
[394867191,1764035432599,-500.0,8.341e-05,2]
[394867192,1764035432607,-500.0,8.341e-05,2]
[394867193,1764035432616,-500.0,8.341e-05,2]
[394867194,1764035432626,-393.86091857,8.341e-05,2]
[394867195,1764035432637,-106.13908143,8.341e-05,2]
[394867196,1764035432646,-292.81198305,8.341e-05,2]
[394867228,1764035438294,-207.18801695,8.341e-05,2]
[394867230,1764035438303,-322.27687791,8.341e-05,2]
[394867244,1764035438639,-177.72312209,8.341e-05,2]
[394867245,1764035438649,-500.0,8.341e-05,2]
[394867246,1764035438658,-555.5560711,8.341e-05,2]
[394867247,1764035438667,-500.0,8.341e-05,2]
[394867248,1764035438677,-155.11393551,8.341e-05,2]
[394867249,1764035438696,-344.88606449,8.341e-05,2]
[394867250,1764035438706,-500.0,8.341e-05,2]
[394867251,1764035438715,-500.0,8.341e-05,2]
[394867252,1764035438729,-500.0,8.341e-05,2]
[394867253,1764035438738,-500.0,8.341e-05,2]
[394867254,1764035438747,-500.0,8.341e-05,2]
[394867255,1764035438756,-500.0,8.341e-05,2]
[394867256,1764035438765,-238.03945981,8.342e-05,2]
[394867257,1764035438775,-296.20521669,8.342e-05,2]
[394867258,1764035438784,-964.5278299,8.342e-05,2]
[394867259,1764035438797,-663.89412438,8.342e-05,2]
[394867260,1764035438806,-1431.30968111,8.342e-05,2]
[394867285,1764035444752,-89.12641814,8.239e-05,2]
[394867290,1764035636019,414.39571138,8.075e-05,2]
[394867291,1764035640861,10007.6966575,7.389e-05,2]
[394867292,1764035644073,414.39571138,8.075e-05,2]
[394867293,1764035659716,178.99096622,8.116e-05,2]
[394867294,1764035667545,178.99096622,8.116e-05,2]
[394867295,1764035682821,178.99096622,8.116e-05,2]
[394867296,1764035690610,178.99096622,8.116e-05,2]
[394867297,1764035706251,178.99096622,8.116e-05,2]
[394867298,1764035714868,178.99096622,8.116e-05,2]
[394867299,1764035730015,178.99096622,8.116e-05,2]
[394867301,1764035737834,178.99096622,8.116e-05,2]
[394867302,1764035752663,178.99096622,8.116e-05,2]
[394867303,1764035760722,178.99096622,8.116e-05,2]
[394867304,1764035775946,178.99096622,8.116e-05,2]
[394867305,1764035783738,178.99096622,8.116e-05,2]
[394867306,1764035799505,178.99096622,8.116e-05,2]
[394867307,1764035807808,178.99096622,8.116e-05,2]
[394867308,1764035823013,178.99096622,8.116e-05,2]
[394867309,1764035826884,500.0,0.0002,30]
[394867310,1764035830797,178.99096622,8.116e-05,2]
[394867311,1764035846583,178.99096622,8.116e-05,2]
[394867312,1764035854978,178.99096622,8.116e-05,2]
[394867313,1764035877833,178.99096622,8.047e-05,2]
[394867314,1764035900865,57.13113939,8.047e-05,2]
[394867315,1764035902904,-121.85982683,8.047e-05,2]
[394867316,1764035908404,500.0,0.0002,30]
[394867317,1764035933695,-178.99096622,8.047e-05,2]
[394867318,1764035946356,178.99096622,8.047e-05,2]
[394867320,1764035979657,-178.99096622,8.047e-05,2]
[394867321,1764035991822,178.99096622,8.047e-05,2]
[394867323,1764036013941,500.0,0.0002,30]
[394867324,1764036021888,500.0,0.0002,30]
[394867325,1764036024684,-328.96968259,8.047e-05,2]
[394867326,1764036025609,-1632.6746321,8.047e-05,2]
[394867327,1764036030183,500.0,0.0002,30]
[394867328,1764036041007,500.0,0.0002,30]
[394867329,1764036050182,500.0,0.0002,30]
[394867330,1764036054608,-306.53933909,8.047e-05,2]
[394867331,1764036056957,-295.18610436,8.047e-05,2]
[394867332,1764036058620,-658.10424781,8.047e-05,2]
[394867333,1764036061773,5948.22206533,8.047e-05,2]
[394867334,1764036086924,-300.0,8.046e-05,2]
[394867335,1764036107498,300.0,8.046e-05,2]
[394867336,1764036129798,300.0,8.046e-05,2]
[394867337,1764036137635,300.0,8.046e-05,2]
[394867338,1764036152960,300.0,8.046e-05,2]
[394867339,1764036160713,300.0,8.046e-05,2]
[394867340,1764036176830,1500.0,8.046e-05,2]
[394867341,1764036184982,659.82969126,8.046e-05,2]
[394867342,1764036200176,1500.0,8.046e-05,2]
[394867344,1764036222962,1500.0,8.046e-05,2]
[394867346,1764036245246,813.64477467,8.046e-05,2]
[394867347,1764036268091,1200.0,8.046e-05,2]
[394867348,1764036290836,726.53553407,8.046e-05,2]
[394867349,1764036290872,473.46446593,8.046e-05,2]
[394867351,1764036313495,2700.0,8.046e-05,2]
[394867353,1764036328720,578.4,0.0002,30]
[394867354,1764036336359,2700.0,8.046e-05,2]
[394867355,1764036348354,479.0,0.0002,30]
[394867356,1764036358691,2700.0,8.046e-05,2]
[394867357,1764036381593,1426.54553407,8.046e-05,2]
[394867358,1764036381616,1273.45446593,8.046e-05,2]
[394867359,1764036404501,2700.0,8.046e-05,2]
[394867360,1764036427503,2700.0,8.046e-05,2]
[394867362,1764036449786,2700.0,8.046e-05,2]
[394867363,1764036472661,626.55553407,8.046e-05,2]
[394867364,1764036472686,2073.44446593,8.046e-05,2]
[394867365,1764036495508,2700.0,8.046e-05,2]
[394867366,1764036518393,2700.0,8.046e-05,2]
[394867404,1764036632549,-1200.0,8.126e-05,2]
[394867405,1764036632560,-235.27231834,8.127e-05,2]
[394867433,1764036638671,-964.72768166,8.127e-05,2]
[394867434,1764036638681,-300.0,8.127e-05,2]
[394867435,1764036638690,-193.69096622,8.127e-05,2]
[394867436,1764036638699,-500.0,8.128e-05,2]
[394867438,1764036638708,-500.0,8.128e-05,2]
[394867440,1764036638720,-500.0,8.128e-05,2]
[394867442,1764036638729,-500.0,8.128e-05,2]
[394867444,1764036638737,-500.0,8.128e-05,2]
[394867446,1764036638746,-500.0,8.128e-05,2]
[394867448,1764036638755,-281.80733008,8.128e-05,2]
[394867449,1764036638964,-218.19266992,8.128e-05,2]
[394867450,1764036638974,-45.07418929,8.128e-05,2]
[394867451,1764036638987,-454.92581071,8.128e-05,2]
[394867452,1764036638996,-500.0,8.128e-05,2]
[394867453,1764036639006,-500.0,8.128e-05,2]
[394867454,1764036639016,-500.0,8.128e-05,2]
[394867455,1764036639026,-269.23109911,8.128e-05,2]
[394867456,1764036639035,-500.0,8.223e-05,2]
[394867457,1764036639045,-500.0,8.223e-05,2]
[394867458,1764036639054,-500.0,8.223e-05,2]
[394867459,1764036639064,-500.0,8.223e-05,2]
[394867460,1764036639073,-500.0,8.223e-05,2]
[394867461,1764036639082,-500.0,8.223e-05,2]
[394867462,1764036639092,-500.0,8.223e-05,2]
[394867463,1764036639101,-500.0,8.223e-05,2]
[394867464,1764036639111,-173.85180422,8.24e-05,2]
[394867506,1764036640781,-387.87664812,8.24e-05,2]
[394867508,1764036640790,-500.0,8.24e-05,2]
[394867510,1764036640800,-500.0,8.24e-05,2]
[394867512,1764036640809,-500.0,8.24e-05,2]
[394867514,1764036640818,-500.0,8.24e-05,2]
[394867515,1764036640827,-500.0,8.24e-05,2]
[394867516,1764036640836,-500.0,8.24e-05,2]
[394867517,1764036640845,-364.54108757,8.24e-05,2]
[394867518,1764036640854,-500.0,8.24e-05,2]
[394867519,1764036640863,-500.0,8.24e-05,2]
[394867520,1764036640872,-500.0,8.24e-05,2]
[394867521,1764036640882,-500.0,8.24e-05,2]
[394867522,1764036640892,-500.0,8.24e-05,2]
[394867523,1764036640902,-500.0,8.24e-05,2]
[394867524,1764036640911,-500.0,8.24e-05,2]
[394867525,1764036640921,-500.0,8.24e-05,2]
[394867526,1764036640930,-500.0,8.24e-05,2]
[394867527,1764036640939,-500.0,8.24e-05,2]
[394867528,1764036640948,-500.0,8.24e-05,2]
[394867529,1764036640958,-500.0,8.24e-05,2]
[394867530,1764036640967,-500.0,8.24e-05,2]
[394867531,1764036640976,-500.0,8.24e-05,2]
[394867532,1764036640985,-500.0,8.24e-05,2]
[394867533,1764036640994,-562.88559254,8.24e-05,2]
[394867534,1764036641003,-500.0,8.24e-05,2]
[394867535,1764036641012,-500.0,8.24e-05,2]
[394867536,1764036641021,-500.0,8.24e-05,2]
[394867537,1764036641031,-156.17279201,8.24e-05,2]
[394867538,1764036641040,-500.0,8.24e-05,2]
[394867539,1764036641049,-500.0,8.24e-05,2]
[394867540,1764036641059,-500.0,8.24e-05,2]
[394867541,1764036641068,-379.95311875,8.24e-05,2]
[394867542,1764036641078,-162.65243803,8.24e-05,2]
[394867543,1764036641088,-151.0,8.24e-05,2]
[394867544,1764036641097,-151.0,8.24e-05,2]
[394867545,1764036641106,-1597.82463793,8.241e-05,2]
[394867546,1764036641116,-1597.82463793,8.241e-05,2]
[394867547,1764036641125,-1597.82463793,8.241e-05,2]
[394867548,1764036641135,-1597.82463793,8.241e-05,2]
[394867549,1764036641145,-1597.82463793,8.241e-05,2]
[394867550,1764036641154,-1597.82463793,8.241e-05,2]
[394867551,1764036641163,-1597.82463793,8.241e-05,2]
[394867552,1764036641173,-1597.82463793,8.241e-05,2]
[394867553,1764036641182,-1597.82463793,8.241e-05,2]
[394867554,1764036641191,-1597.82463793,8.241e-05,2]
[394867555,1764036641200,-1597.82463793,8.241e-05,2]
[394867556,1764036641210,-1597.82463793,8.241e-05,2]
[394867557,1764036641219,-1597.82463793,8.241e-05,2]
[394867558,1764036641229,-1597.82463793,8.241e-05,2]
[394867559,1764036641238,-1597.82463793,8.241e-05,2]
[394867560,1764036641248,-1597.82463793,8.241e-05,2]
[394867561,1764036641258,-1597.82463793,8.241e-05,2]
[394867562,1764036641267,-1597.82463793,8.241e-05,2]
[394867563,1764036641277,-1597.82463793,8.241e-05,2]
[394867564,1764036641287,-1612.35031645,8.241e-05,2]
[394867565,1764036641297,-1612.35031645,8.241e-05,2]
[394867566,1764036641307,-1612.35031645,8.241e-05,2]
[394867567,1764036641316,-1612.35031645,8.241e-05,2]
[394867568,1764036641325,-1612.35031645,8.241e-05,2]
[394867569,1764036641335,-1612.35031645,8.241e-05,2]
[394867570,1764036641344,-1612.35031645,8.241e-05,2]
[394867571,1764036641353,-1612.35031645,8.241e-05,2]
[394867572,1764036641363,-1612.35031645,8.241e-05,2]
[394867573,1764036641372,-1612.35031645,8.241e-05,2]
[394867574,1764036641381,-1612.35031645,8.241e-05,2]
[394867575,1764036641391,-166.62762187,8.241e-05,2]
[394867576,1764036641401,-207.34365168,8.241e-05,2]
[394867577,1764036641410,-151.0,8.241e-05,2]
[394867578,1764036641420,-151.0,8.241e-05,2]
[394867579,1764036641429,-151.581313,8.241e-05,2]
[394867580,1764036641438,-151.0,8.241e-05,2]
[394867581,1764036641447,-151.0,8.241e-05,2]
[394867582,1764036641456,-151.0,8.241e-05,2]
[394867583,1764036641465,-151.0,8.241e-05,2]
[394867584,1764036641475,-151.0,8.241e-05,2]
[394867585,1764036641484,-151.0,8.241e-05,2]
[394867586,1764036641493,-151.0,8.241e-05,2]
[394867587,1764036641502,-166.45174,8.241e-05,2]
[394867588,1764036641511,-296030.73419338,8.242e-05,2]
[394867598,1764036644663,-689.169102,8.242e-05,2]
[394867599,1764036645448,-87049.28367128,8.242e-05,2]
[394867600,1764036645458,-862.50855656,8.242e-05,2]
[394867613,1764036818467,-158.62007119,7.996e-05,2]
[394867614,1764036824320,-13.01992881,7.996e-05,2]
[394867615,1764036832634,171.64,7.996e-05,2]
[394867616,1764036840475,156.87943515,7.996e-05,2]
[394867617,1764036848486,176.33209375,7.943e-05,2]
[394867618,1764036855037,-176.33209375,8.023e-05,2]
[394867619,1764036856277,176.33209375,7.943e-05,2]
[394867620,1764036871646,171.64,7.996e-05,2]
[394867621,1764036879578,171.64,7.996e-05,2]
[394867622,1764036894828,171.64,7.996e-05,2]
[394867623,1764036902661,171.64,7.996e-05,2]
[394867624,1764036918254,171.64,7.996e-05,2]
[394867625,1764036926064,171.64,7.996e-05,2]
[394867626,1764036941265,171.64,7.996e-05,2]
[394867627,1764036949047,171.64,7.996e-05,2]
[394867628,1764036963423,176.33209375,8.023e-05,2]
[394867629,1764036964669,171.64,7.996e-05,2]
[394867630,1764036972698,171.64,7.996e-05,2]
[394867631,1764036987922,171.64,7.996e-05,2]
[394867632,1764036995636,171.64,7.996e-05,2]
[394867633,1764037011273,171.64,7.996e-05,2]
[394867634,1764037019072,171.64,7.996e-05,2]
[394867637,1764037034712,171.64,7.996e-05,2]
[394867638,1764037042478,171.64,7.996e-05,2]
[394867639,1764037058274,171.64,7.996e-05,2]
[394867640,1764037066066,171.64,7.996e-05,2]
[394867641,1764037074180,171.64,7.996e-05,2]
[394867642,1764037082062,171.64,7.996e-05,2]
[394867643,1764037090058,171.64,7.996e-05,2]
[394867644,1764037098346,171.64,7.996e-05,2]
[394867645,1764037121668,171.64,7.996e-05,2]
[394867646,1764037144502,171.64,7.996e-05,2]
[394867648,1764037166926,171.64,7.996e-05,2]
[394867649,1764037189694,171.64,7.996e-05,2]
[394867650,1764037212707,171.64,7.996e-05,2]
[394867651,1764037235456,171.64,7.996e-05,2]
[394867652,1764037258037,171.64,7.996e-05,2]
[394867653,1764037280946,171.64,7.996e-05,2]
[394867654,1764037302556,171.64,7.978e-05,2]
[394867655,1764037307392,500.0,0.0002,30]
[394867656,1764037521225,44180.0,0.0002,30]
[394867657,1764037552273,200.0,0.0002,30]
[394867658,1764037552545,200.0,0.0002,30]
[394867659,1764037552820,200.0,0.0002,30]
[394867660,1764037553121,200.0,0.0002,30]
[394867661,1764037553450,200.0,0.0002,30]
[394867662,1764037553688,200.0,0.0002,30]
[394867663,1764037553987,200.0,0.0002,30]
[394867664,1764037554297,200.0,0.0002,30]
[394867665,1764037554576,200.0,0.0002,30]
[394867666,1764037554857,200.0,0.0002,30]
[394867667,1764037555265,200.0,0.0002,30]
[394867668,1764037555446,200.0,0.0002,30]
[394867669,1764037555734,202.21245174,0.0002,30]
[394867671,1764037747535,-325.04816999,8.039e-05,2]
[394867672,1764037751817,-261.27290869,8.039e-05,2]
[394867673,1764037753387,-209.09774364,8.039e-05,2]
[394867674,1764037757584,-244.94068569,8.039e-05,2]
[394867675,1764037759121,-304.52639219,8.039e-05,2]
[394867676,1764037760720,-399.75413707,8.039e-05,2]
[394867677,1764037762219,-225.48610451,8.039e-05,2]
[394867678,1764037766915,-271.61691025,8.039e-05,2]
[394867679,1764037769039,-300.0,8.039e-05,2]
[394867680,1764037771161,-454.52651081,8.039e-05,2]
[394867681,1764037773378,-220.91308645,8.039e-05,2]
[394867682,1764037775531,-237.87090852,8.039e-05,2]
[394867683,1764037777139,-153.64209412,8.039e-05,2]
[394867684,1764037781771,-466.18737773,8.039e-05,2]
[394867685,1764037784684,-151.09398994,8.039e-05,2]
[394867686,1764037786217,-247.63805974,8.039e-05,2]
[394867687,1764037791789,-167.39675758,8.039e-05,2]
[394867688,1764037793377,-313.99772386,8.039e-05,2]
[394867689,1764037795051,-289.17207496,8.039e-05,2]
[394867690,1764037797841,-256.50747809,8.039e-05,2]
[394867691,1764037800652,-171.75570015,8.039e-05,2]
[394867692,1764037802147,-161.94663041,8.039e-05,2]
[394867693,1764037803820,1200.0,8.038e-05,2]
[394867694,1764037804785,-166.86781778,8.039e-05,2]
[394867695,1764037806347,-270.94374857,8.039e-05,2]
[394867696,1764037807817,-283.66923729,8.039e-05,2]
[394867697,1764037810448,-205.83282348,8.039e-05,2]
[394867698,1764037812608,300.0,8.038e-05,2]
[394867699,1764037813840,-155.7719901,8.039e-05,2]
[394867700,1764037816092,-369.27974541,8.039e-05,2]
[394867701,1764037820957,-183.34281655,8.039e-05,2]
[394867702,1764037824612,-281.84339141,8.039e-05,2]
[394867703,1764037827235,-154.18634423,8.039e-05,2]
[394867704,1764037829094,-266.24944215,8.039e-05,2]
[394867738,1764037831764,-434.4159844,8.039e-05,2]
[394867739,1764037831821,-299.84052361,8.039e-05,2]
[394867744,1764037834629,-295.25583987,8.039e-05,2]
[394867745,1764037834807,947.18771984,8.038e-05,2]
[394867746,1764037834838,500.0,8.038e-05,2]
[394867747,1764037834868,947.18771984,8.038e-05,2]
[394867748,1764037834904,947.18771984,8.038e-05,2]
[394867749,1764037834941,170.1768496,8.038e-05,2]
[394867750,1764037835190,947.18771984,8.038e-05,2]
[394867751,1764037835421,947.18771984,8.038e-05,2]
[394867752,1764037835636,947.18771984,8.038e-05,2]
[394867753,1764037835775,947.18771984,8.038e-05,2]
[394867754,1764037836162,947.18771984,8.038e-05,2]
[394867755,1764037836439,252.33139168,8.038e-05,2]
[394867756,1764037836462,694.85632816,8.038e-05,2]
[394867757,1764037836558,268.65379501,8.038e-05,2]
[394867758,1764037836748,947.18771984,8.038e-05,2]
[394867759,1764037836788,947.18771984,8.038e-05,2]
[394867760,1764037836869,947.18771984,8.038e-05,2]
[394867761,1764037836968,947.18771984,8.038e-05,2]
[394867762,1764037837072,947.18771984,8.038e-05,2]
[394867763,1764037837115,947.18771984,8.038e-05,2]
[394867764,1764037837206,947.18771984,8.038e-05,2]
[394867765,1764037837306,947.18771984,8.038e-05,2]
[394867791,1764037837843,-4167.96378097,8.039e-05,2]
[394867794,1764037838496,-380.21101348,8.039e-05,2]
[394867800,1764037839980,-8965.04039983,8.039e-05,2]
[394867801,1764037840028,-2978.97552168,8.039e-05,2]
[394867806,1764037840418,-3e-08,8.039e-05,2]
[394867807,1764037840434,-394.56133503,8.039e-05,2]
[394867808,1764037840445,-9376.10140001,8.039e-05,2]
[394867809,1764037840456,-2665.76654565,8.039e-05,2]
[394867810,1764037841861,-10000.01,8.039e-05,2]
[394867811,1764037841988,-10000.01,8.039e-05,2]
[394867812,1764037842043,-256.950544,8.039e-05,2]
[394867813,1764037842100,-10000.01,8.039e-05,2]
[394867814,1764037842236,-10000.01,8.039e-05,2]
[394867815,1764037842332,-10000.01,8.039e-05,2]
[394867816,1764037842457,-10000.01,8.039e-05,2]
[394867824,1764037844910,-21279.57618563,8.039e-05,2]
[394867825,1764037845026,-10000.01,8.039e-05,2]
[394867831,1764037853529,-157.09116636,7.959e-05,2]
[394867832,1764037854582,-10000.01,7.959e-05,2]
[394867833,1764037854667,-10000.01,7.959e-05,2]
[394867834,1764037854679,-10000.01,7.959e-05,2]
[394867835,1764037856626,-214.07921356,7.959e-05,2]
[394867836,1764037857421,-10000.01,7.879e-05,2]
[394867837,1764037857605,-10000.01,7.879e-05,2]
[394867838,1764037857737,-3188.22892903,7.879e-05,2]
[394867839,1764037857762,-3623.55214194,7.879e-05,2]
[394867840,1764037857844,-3402.30814259,7.959e-05,2]
[394867841,1764037857867,-3195.39371482,7.959e-05,2]
[394867842,1764037865277,3146.32161643,7.959e-05,2]
[394867843,1764037873070,300.0,7.958e-05,2]
[394867844,1764037881160,300.0,7.958e-05,2]
[394867845,1764037882012,-180.465174,8.007e-05,2]
[394867846,1764037902593,171.64,7.879e-05,2]
[394867851,1764038093484,-26.21722734,8.007e-05,2]
[394867852,1764038093507,-129.89068684,8.01e-05,2]
[394867853,1764038169121,-80.70118332,8.01e-05,2]
[394867854,1764038169144,-195.48687758,8.012e-05,2]
[394867855,1764038220288,206.68240134,7.907e-05,2]
[394867856,1764038224586,206.68240134,7.828e-05,2]
[394867857,1764038232363,7508.71403,7.932e-05,2]
[394867858,1764038247617,262.50813403,7.932e-05,2]
[394867859,1764038255478,1343.78303329,7.932e-05,2]
[394867860,1764038255500,848.26666368,7.932e-05,2]
[394867861,1764038271265,203.7821716,7.06e-05,2]
[394867862,1764038271811,-242.52867717,8.012e-05,2]
[394867863,1764038273295,-391.65985322,8.012e-05,2]
[394867864,1764038277082,-328.78613217,8.012e-05,2]
[394867866,1764038288527,-237.02533744,8.012e-05,2]
[394867867,1764038288551,-17.7633044,8.012e-05,2]
[394867868,1764038291911,-159.7750899,8.012e-05,2]
[394867869,1764038345882,1253.4481588,7.116e-05,2]
[394867870,1764038346727,-296.90317842,8.012e-05,2]
[394867871,1764038361634,1000.0,0.000111,3]
[394867872,1764038409664,-238.27669846,7.999e-05,2]
[394867873,1764038412274,-61.72330154,7.999e-05,2]
[394867874,1764038412295,-134.06055447,7.999e-05,2]
[394867875,1764038415521,-165.93944553,7.999e-05,2]
[394867876,1764038415541,-156.38265948,7.999e-05,2]
[394867877,1764038422352,-143.61734052,7.999e-05,2]
[394867878,1764038422374,-69.89246807,7.999e-05,2]
[394867879,1764038424397,-269.34529301,7.999e-05,2]
[394867880,1764038429985,-223.76223892,7.999e-05,2]
[394867881,1764038430009,-75.83141119,8e-05,2]
[394867882,1764038436468,-130.54862157,8e-05,2]
[394867883,1764038436488,-101.98130467,8e-05,2]
[394867884,1764038439733,-300.0,8e-05,2]
[394867885,1764038441253,-185.82710459,8e-05,2]
[394867886,1764038442841,-287.86117568,8e-05,2]
[394867887,1764038445476,-170.59365011,8e-05,2]
[394867888,1764038448705,-233.27254159,8e-05,2]
[394867889,1764038450242,-226.37372118,8e-05,2]
[394867890,1764038452884,-153.74419509,8e-05,2]
[394867891,1764038455115,-196.54015819,8e-05,2]
[394867892,1764038457858,-320.53733789,8e-05,2]
[394867893,1764038461439,-184.87038473,8e-05,2]
[394867894,1764038463169,-370.59365011,8e-05,2]
[394867895,1764038466208,-323.48458614,8e-05,2]
[394867897,1764038502585,172.122,7.879e-05,2]
[394867901,1764038761672,7522.39100592,7.936e-05,2]
[394867902,1764038761696,10000.01,7.936e-05,2]
[394867903,1764038761720,10000.01,7.936e-05,2]
[394867904,1764038761744,10000.01,7.936e-05,2]
[394867905,1764038761768,10000.01,7.936e-05,2]
[394867906,1764038764157,-226.01486827,7.935e-05,2]